Workbook

Sheet Säljrapport
B1: Försäljningsrappot
B20: Produkter

Sheet Historiska data
B1: Tidigare prislistor och försäljningshistorik
B3: Produktnummer | C3: Produktnamn | D3: Prisdatum | E3: Styckpris per enhet | F3: Mängdpris per enhet* | G3: Sålda enheter (styck) | H3: Sålda enheter (mängd) | I3: Total försäljning (antal) | J3: Total försäljning (kronor)
B4: 5 | C4: =IFERROR(IF(tblFörsäljning[[#This Row],[Produktnummer]]<>"",VLOOKUP(tblFörsäljning[Produktnummer],tblProdukter[[Produktnummer]:[Namn]],2,FALSE),""),"Unknown Product ID") -> Kortbyxor | D4: 2012-01-01 | E4: 20 | F4: 20 kr | G4: 629 | H4: 1,254 | I4: =tblFörsäljning[[#This Row],[Sålda enheter (styck)]]+tblFörsäljning[[#This Row],[Sålda enheter (mängd)]] -> 1,883 | J4: =tblFörsäljning[[#This Row],[Sålda enheter (styck)]]*tblFörsäljning[[#This Row],[Styckpris per enhet]]+tblFörsäljning[[#This Row],[Sålda enheter (mängd)]]*tblFörsäljning[[#This Row],[Mängdpris per enhet*]] -> 37,660 kr
B5: 1 | C5: =IFERROR(IF(tblFörsäljning[[#This Row],[Produktnummer]]<>"",VLOOKUP(tblFörsäljning[Produktnummer],tblProdukter[[Produktnummer]:[Namn]],2,FALSE),""),"Unknown Product ID") -> Skjortor | D5: 2012-01-01 | E5: 88 | F5: 54 kr | G5: 734 | H5: 1,427 | I5: =tblFörsäljning[[#This Row],[Sålda enheter (styck)]]+tblFörsäljning[[#This Row],[Sålda enheter (mängd)]] -> 2,161 | J5: =tblFörsäljning[[#This Row],[Sålda enheter (styck)]]*tblFörsäljning[[#This Row],[Styckpris per enhet]]+tblFörsäljning[[#This Row],[Sålda enheter (mängd)]]*tblFörsäljning[[#This Row],[Mängdpris per enhet*]] -> 141,650 kr
B6: 2 | C6: =IFERROR(IF(tblFörsäljning[[#This Row],[Produktnummer]]<>"",VLOOKUP(tblFörsäljning[Produktnummer],tblProdukter[[Produktnummer]:[Namn]],2,FALSE),""),"Unknown Product ID") -> Sandaler | D6: 2012-01-01 | E6: 70 | F6: 44 kr | G6: 744 | H6: 1,043 | I6: =tblFörsäljning[[#This Row],[Sålda enheter (styck)]]+tblFörsäljning[[#This Row],[Sålda enheter (mängd)]] -> 1,787 | J6: =tblFörsäljning[[#This Row],[Sålda enheter (styck)]]*tblFörsäljning[[#This Row],[Styckpris per enhet]]+tblFörsäljning[[#This Row],[Sålda enheter (mängd)]]*tblFörsäljning[[#This Row],[Mängdpris per enhet*]] -> 97,972 kr
B7: 3 | C7: =IFERROR(IF(tblFörsäljning[[#This Row],[Produktnummer]]<>"",VLOOKUP(tblFörsäljning[Produktnummer],tblProdukter[[Produktnummer]:[Namn]],2,FALSE),""),"Unknown Product ID") -> Paraplyer | D7: 2012-01-01 | E7: 63 | F7: 44 kr | G7: 681 | H7: 1,523 | I7: =tblFörsäljning[[#This Row],[Sålda enheter (styck)]]+tblFörsäljning[[#This Row],[Sålda enheter (mängd)]] -> 2,204 | J7: =tblFörsäljning[[#This Row],[Sålda enheter (styck)]]*tblFörsäljning[[#This Row],[Styckpris per enhet]]+tblFörsäljning[[#This Row],[Sålda enheter (mängd)]]*tblFörsäljning[[#This Row],[Mängdpris per enhet*]] -> 109,915 kr
B8: 4 | C8: =IFERROR(IF(tblFörsäljning[[#This Row],[Produktnummer]]<>"",VLOOKUP(tblFörsäljning[Produktnummer],tblProdukter[[Produktnummer]:[Namn]],2,FALSE),""),"Unknown Product ID") -> Vattenflaskor | D8: 2012-01-01 | E8: 35 | F8: 27 kr | G8: 602 | H8: 1,822 | I8: =tblFörsäljning[[#This Row],[Sålda enheter (styck)]]+tblFörsäljning[[#This Row],[Sålda enheter (mängd)]] -> 2,424 | J8: =tblFörsäljning[[#This Row],[Sålda enheter (styck)]]*tblFörsäljning[[#This Row],[Styckpris per enhet]]+tblFörsäljning[[#This Row],[Sålda enheter (mängd)]]*tblFörsäljning[[#This Row],[Mängdpris per enhet*]] -> 70,264 kr
B9: 1 | C9: =IFERROR(IF(tblFörsäljning[[#This Row],[Produktnummer]]<>"",VLOOKUP(tblFörsäljning[Produktnummer],tblProdukter[[Produktnummer]:[Namn]],2,FALSE),""),"Unknown Product ID") -> Skjortor | D9: 2012-02-01 | E9: 55 | F9: 44 kr | G9: 678 | H9: 1,515 | I9: =tblFörsäljning[[#This Row],[Sålda enheter (styck)]]+tblFörsäljning[[#This Row],[Sålda enheter (mängd)]] -> 2,193 | J9: =tblFörsäljning[[#This Row],[Sålda enheter (styck)]]*tblFörsäljning[[#This Row],[Styckpris per enhet]]+tblFörsäljning[[#This Row],[Sålda enheter (mängd)]]*tblFörsäljning[[#This Row],[Mängdpris per enhet*]] -> 103,950 kr
B10: 2 | C10: =IFERROR(IF(tblFörsäljning[[#This Row],[Produktnummer]]<>"",VLOOKUP(tblFörsäljning[Produktnummer],tblProdukter[[Produktnummer]:[Namn]],2,FALSE),""),"Unknown Product ID") -> Sandaler | D10: 2012-02-01 | E10: 83 | F10: 54 kr | G10: 753 | H10: 1,005 | I10: =tblFörsäljning[[#This Row],[Sålda enheter (styck)]]+tblFörsäljning[[#This Row],[Sålda enheter (mängd)]] -> 1,758 | J10: =tblFörsäljning[[#This Row],[Sålda enheter (styck)]]*tblFörsäljning[[#This Row],[Styckpris per enhet]]+tblFörsäljning[[#This Row],[Sålda enheter (mängd)]]*tblFörsäljning[[#This Row],[Mängdpris per enhet*]] -> 116,769 kr
B11: 3 | C11: =IFERROR(IF(tblFörsäljning[[#This Row],[Produktnummer]]<>"",VLOOKUP(tblFörsäljning[Produktnummer],tblProdukter[[Produktnummer]:[Namn]],2,FALSE),""),"Unknown Product ID") -> Paraplyer | D11: 2012-02-01 | E11: 34 | F11: 34 kr | G11: 986 | H11: 1,069 | I11: =tblFörsäljning[[#This Row],[Sålda enheter (styck)]]+tblFörsäljning[[#This Row],[Sålda enheter (mängd)]] -> 2,055 | J11: =tblFörsäljning[[#This Row],[Sålda enheter (styck)]]*tblFörsäljning[[#This Row],[Styckpris per enhet]]+tblFörsäljning[[#This Row],[Sålda enheter (mängd)]]*tblFörsäljning[[#This Row],[Mängdpris per enhet*]] -> 69,870 kr
B12: 4 | C12: =IFERROR(IF(tblFörsäljning[[#This Row],[Produktnummer]]<>"",VLOOKUP(tblFörsäljning[Produktnummer],tblProdukter[[Produktnummer]:[Namn]],2,FALSE),""),"Unknown Product ID") -> Vattenflaskor | D12: 2012-02-01 | E12: 35 | F12: 25 kr | G12: 848 | H12: 1,211 | I12: =tblFörsäljning[[#This Row],[Sålda enheter (styck)]]+tblFörsäljning[[#This Row],[Sålda enheter (mängd)]] -> 2,059 | J12: =tblFörsäljning[[#This Row],[Sålda enheter (styck)]]*tblFörsäljning[[#This Row],[Styckpris per enhet]]+tblFörsäljning[[#This Row],[Sålda enheter (mängd)]]*tblFörsäljning[[#This Row],[Mängdpris per enhet*]] -> 59,955 kr
B13: 5 | C13: =IFERROR(IF(tblFörsäljning[[#This Row],[Produktnummer]]<>"",VLOOKUP(tblFörsäljning[Produktnummer],tblProdukter[[Produktnummer]:[Namn]],2,FALSE),""),"Unknown Product ID") -> Kortbyxor | D13: 2012-02-01 | E13: 41 | F13: 38 kr | G13: 980 | H13: 1,330 | I13: =tblFörsäljning[[#This Row],[Sålda enheter (styck)]]+tblFörsäljning[[#This Row],[Sålda enheter (mängd)]] -> 2,310 | J13: =tblFörsäljning[[#This Row],[Sålda enheter (styck)]]*tblFörsäljning[[#This Row],[Styckpris per enhet]]+tblFörsäljning[[#This Row],[Sålda enheter (mängd)]]*tblFörsäljning[[#This Row],[Mängdpris per enhet*]] -> 90,720 kr
B14: 1 | C14: =IFERROR(IF(tblFörsäljning[[#This Row],[Produktnummer]]<>"",VLOOKUP(tblFörsäljning[Produktnummer],tblProdukter[[Produktnummer]:[Namn]],2,FALSE),""),"Unknown Product ID") -> Skjortor | D14: 2012-02-29 | E14: 27 | F14: 18 kr | G14: 533 | H14: 1,936 | I14: =tblFörsäljning[[#This Row],[Sålda enheter (styck)]]+tblFörsäljning[[#This Row],[Sålda enheter (mängd)]] -> 2,469 | J14: =tblFörsäljning[[#This Row],[Sålda enheter (styck)]]*tblFörsäljning[[#This Row],[Styckpris per enhet]]+tblFörsäljning[[#This Row],[Sålda enheter (mängd)]]*tblFörsäljning[[#This Row],[Mängdpris per enhet*]] -> 49,239 kr
B15: 2 | C15: =IFERROR(IF(tblFörsäljning[[#This Row],[Produktnummer]]<>"",VLOOKUP(tblFörsäljning[Produktnummer],tblProdukter[[Produktnummer]:[Namn]],2,FALSE),""),"Unknown Product ID") -> Sandaler | D15: 2012-02-29 | E15: 38 | F15: 28 kr | G15: 952 | H15: 1,512 | I15: =tblFörsäljning[[#This Row],[Sålda enheter (styck)]]+tblFörsäljning[[#This Row],[Sålda enheter (mängd)]] -> 2,464 | J15: =tblFörsäljning[[#This Row],[Sålda enheter (styck)]]*tblFörsäljning[[#This Row],[Styckpris per enhet]]+tblFörsäljning[[#This Row],[Sålda enheter (mängd)]]*tblFörsäljning[[#This Row],[Mängdpris per enhet*]] -> 78,512 kr
B16: 3 | C16: =IFERROR(IF(tblFörsäljning[[#This Row],[Produktnummer]]<>"",VLOOKUP(tblFörsäljning[Produktnummer],tblProdukter[[Produktnummer]:[Namn]],2,FALSE),""),"Unknown Product ID") -> Paraplyer | D16: 2012-02-29 | E16: 92 | F16: 92 kr | G16: 956 | H16: 1,266 | I16: =tblFörsäljning[[#This Row],[Sålda enheter (styck)]]+tblFörsäljning[[#This Row],[Sålda enheter (mängd)]] -> 2,222 | J16: =tblFörsäljning[[#This Row],[Sålda enheter (styck)]]*tblFörsäljning[[#This Row],[Styckpris per enhet]]+tblFörsäljning[[#This Row],[Sålda enheter (mängd)]]*tblFörsäljning[[#This Row],[Mängdpris per enhet*]] -> 204,424 kr
B17: 4 | C17: =IFERROR(IF(tblFörsäljning[[#This Row],[Produktnummer]]<>"",VLOOKUP(tblFörsäljning[Produktnummer],tblProdukter[[Produktnummer]:[Namn]],2,FALSE),""),"Unknown Product ID") -> Vattenflaskor | D17: 2012-02-29 | E17: 43 | F17: 36 kr | G17: 952 | H17: 1,390 | I17: =tblFörsäljning[[#This Row],[Sålda enheter (styck)]]+tblFörsäljning[[#This Row],[Sålda enheter (mängd)]] -> 2,342 | J17: =tblFörsäljning[[#This Row],[Sålda enheter (styck)]]*tblFörsäljning[[#This Row],[Styckpris per enhet]]+tblFörsäljning[[#This Row],[Sålda enheter (mängd)]]*tblFörsäljning[[#This Row],[Mängdpris per enhet*]] -> 90,976 kr
B18: 5 | C18: =IFERROR(IF(tblFörsäljning[[#This Row],[Produktnummer]]<>"",VLOOKUP(tblFörsäljning[Produktnummer],tblProdukter[[Produktnummer]:[Namn]],2,FALSE),""),"Unknown Product ID") -> Kortbyxor | D18: 2012-02-29 | E18: 98 | F18: 73 kr | G18: 530 | H18: 1,452 | I18: =tblFörsäljning[[#This Row],[Sålda enheter (styck)]]+tblFörsäljning[[#This Row],[Sålda enheter (mängd)]] -> 1,982 | J18: =tblFörsäljning[[#This Row],[Sålda enheter (styck)]]*tblFörsäljning[[#This Row],[Styckpris per enhet]]+tblFörsäljning[[#This Row],[Sålda enheter (mängd)]]*tblFörsäljning[[#This Row],[Mängdpris per enhet*]] -> 157,936 kr
B19: 1 | C19: =IFERROR(IF(tblFörsäljning[[#This Row],[Produktnummer]]<>"",VLOOKUP(tblFörsäljning[Produktnummer],tblProdukter[[Produktnummer]:[Namn]],2,FALSE),""),"Unknown Product ID") -> Skjortor | D19: 2012-03-31 | E19: 38 | F19: 28 kr | G19: 973 | H19: 1,415 | I19: =tblFörsäljning[[#This Row],[Sålda enheter (styck)]]+tblFörsäljning[[#This Row],[Sålda enheter (mängd)]] -> 2,388 | J19: =tblFörsäljning[[#This Row],[Sålda enheter (styck)]]*tblFörsäljning[[#This Row],[Styckpris per enhet]]+tblFörsäljning[[#This Row],[Sålda enheter (mängd)]]*tblFörsäljning[[#This Row],[Mängdpris per enhet*]] -> 76,594 kr
B20: 2 | C20: =IFERROR(IF(tblFörsäljning[[#This Row],[Produktnummer]]<>"",VLOOKUP(tblFörsäljning[Produktnummer],tblProdukter[[Produktnummer]:[Namn]],2,FALSE),""),"Unknown Product ID") -> Sandaler | D20: 2012-03-31 | E20: 50 | F20: 36 kr | G20: 672 | H20: 1,105 | I20: =tblFörsäljning[[#This Row],[Sålda enheter (styck)]]+tblFörsäljning[[#This Row],[Sålda enheter (mängd)]] -> 1,777 | J20: =tblFörsäljning[[#This Row],[Sålda enheter (styck)]]*tblFörsäljning[[#This Row],[Styckpris per enhet]]+tblFörsäljning[[#This Row],[Sålda enheter (mängd)]]*tblFörsäljning[[#This Row],[Mängdpris per enhet*]] -> 73,380 kr
B21: 3 | C21: =IFERROR(IF(tblFörsäljning[[#This Row],[Produktnummer]]<>"",VLOOKUP(tblFörsäljning[Produktnummer],tblProdukter[[Produktnummer]:[Namn]],2,FALSE),""),"Unknown Product ID") -> Paraplyer | D21: 2012-03-31 | E21: 24 | F21: 23 kr | G21: 769 | H21: 1,629 | I21: =tblFörsäljning[[#This Row],[Sålda enheter (styck)]]+tblFörsäljning[[#This Row],[Sålda enheter (mängd)]] -> 2,398 | J21: =tblFörsäljning[[#This Row],[Sålda enheter (styck)]]*tblFörsäljning[[#This Row],[Styckpris per enhet]]+tblFörsäljning[[#This Row],[Sålda enheter (mängd)]]*tblFörsäljning[[#This Row],[Mängdpris per enhet*]] -> 55,923 kr
B22: 4 | C22: =IFERROR(IF(tblFörsäljning[[#This Row],[Produktnummer]]<>"",VLOOKUP(tblFörsäljning[Produktnummer],tblProdukter[[Produktnummer]:[Namn]],2,FALSE),""),"Unknown Product ID") -> Vattenflaskor | D22: 2012-03-31 | E22: 72 | F22: 57 kr | G22: 985 | H22: 1,848 | I22: =tblFörsäljning[[#This Row],[Sålda enheter (styck)]]+tblFörsäljning[[#This Row],[Sålda enheter (mängd)]] -> 2,833 | J22: =tblFörsäljning[[#This Row],[Sålda enheter (styck)]]*tblFörsäljning[[#This Row],[Styckpris per enhet]]+tblFörsäljning[[#This Row],[Sålda enheter (mängd)]]*tblFörsäljning[[#This Row],[Mängdpris per enhet*]] -> 176,256 kr
B23: 5 | C23: =IFERROR(IF(tblFörsäljning[[#This Row],[Produktnummer]]<>"",VLOOKUP(tblFörsäljning[Produktnummer],tblProdukter[[Produktnummer]:[Namn]],2,FALSE),""),"Unknown Product ID") -> Kortbyxor | D23: 2012-03-31 | E23: 85 | F23: 43 kr | G23: 721 | H23: 1,426 | I23: =tblFörsäljning[[#This Row],[Sålda enheter (styck)]]+tblFörsäljning[[#This Row],[Sålda enheter (mängd)]] -> 2,147 | J23: =tblFörsäljning[[#This Row],[Sålda enheter (styck)]]*tblFörsäljning[[#This Row],[Styckpris per enhet]]+tblFörsäljning[[#This Row],[Sålda enheter (mängd)]]*tblFörsäljning[[#This Row],[Mängdpris per enhet*]] -> 122,603 kr
B24: 1 | C24: =IFERROR(IF(tblFörsäljning[[#This Row],[Produktnummer]]<>"",VLOOKUP(tblFörsäljning[Produktnummer],tblProdukter[[Produktnummer]:[Namn]],2,FALSE),""),"Unknown Product ID") -> Skjortor | D24: 2012-04-30 | E24: 91 | F24: 65 kr | G24: 603 | H24: 1,226 | I24: =tblFörsäljning[[#This Row],[Sålda enheter (styck)]]+tblFörsäljning[[#This Row],[Sålda enheter (mängd)]] -> 1,829 | J24: =tblFörsäljning[[#This Row],[Sålda enheter (styck)]]*tblFörsäljning[[#This Row],[Styckpris per enhet]]+tblFörsäljning[[#This Row],[Sålda enheter (mängd)]]*tblFörsäljning[[#This Row],[Mängdpris per enhet*]] -> 134,563 kr
B25: 2 | C25: =IFERROR(IF(tblFörsäljning[[#This Row],[Produktnummer]]<>"",VLOOKUP(tblFörsäljning[Produktnummer],tblProdukter[[Produktnummer]:[Namn]],2,FALSE),""),"Unknown Product ID") -> Sandaler | D25: 2012-04-30 | E25: 91 | F25: 55 kr | G25: 892 | H25: 1,823 | I25: =tblFörsäljning[[#This Row],[Sålda enheter (styck)]]+tblFörsäljning[[#This Row],[Sålda enheter (mängd)]] -> 2,715 | J25: =tblFörsäljning[[#This Row],[Sålda enheter (styck)]]*tblFörsäljning[[#This Row],[Styckpris per enhet]]+tblFörsäljning[[#This Row],[Sålda enheter (mängd)]]*tblFörsäljning[[#This Row],[Mängdpris per enhet*]] -> 181,437 kr
B26: 3 | C26: =IFERROR(IF(tblFörsäljning[[#This Row],[Produktnummer]]<>"",VLOOKUP(tblFörsäljning[Produktnummer],tblProdukter[[Produktnummer]:[Namn]],2,FALSE),""),"Unknown Product ID") -> Paraplyer | D26: 2012-04-30 | E26: 42 | F26: 42 kr | G26: 611 | H26: 1,181 | I26: =tblFörsäljning[[#This Row],[Sålda enheter (styck)]]+tblFörsäljning[[#This Row],[Sålda enheter (mängd)]] -> 1,792 | J26: =tblFörsäljning[[#This Row],[Sålda enheter (styck)]]*tblFörsäljning[[#This Row],[Styckpris per enhet]]+tblFörsäljning[[#This Row],[Sålda enheter (mängd)]]*tblFörsäljning[[#This Row],[Mängdpris per enhet*]] -> 75,264 kr
B27: 4 | C27: =IFERROR(IF(tblFörsäljning[[#This Row],[Produktnummer]]<>"",VLOOKUP(tblFörsäljning[Produktnummer],tblProdukter[[Produktnummer]:[Namn]],2,FALSE),""),"Unknown Product ID") -> Vattenflaskor | D27: 2012-04-30 | E27: 85 | F27: 43 kr | G27: 530 | H27: 1,039 | I27: =tblFörsäljning[[#This Row],[Sålda enheter (styck)]]+tblFörsäljning[[#This Row],[Sålda enheter (mängd)]] -> 1,569 | J27: =tblFörsäljning[[#This Row],[Sålda enheter (styck)]]*tblFörsäljning[[#This Row],[Styckpris per enhet]]+tblFörsäljning[[#This Row],[Sålda enheter (mängd)]]*tblFörsäljning[[#This Row],[Mängdpris per enhet*]] -> 89,727 kr
B28: 5 | C28: =IFERROR(IF(tblFörsäljning[[#This Row],[Produktnummer]]<>"",VLOOKUP(tblFörsäljning[Produktnummer],tblProdukter[[Produktnummer]:[Namn]],2,FALSE),""),"Unknown Product ID") -> Kortbyxor | D28: 2012-04-30 | E28: 82 | F28: 71 kr | G28: 716 | H28: 1,249 | I28: =tblFörsäljning[[#This Row],[Sålda enheter (styck)]]+tblFörsäljning[[#This Row],[Sålda enheter (mängd)]] -> 1,965 | J28: =tblFörsäljning[[#This Row],[Sålda enheter (styck)]]*tblFörsäljning[[#This Row],[Styckpris per enhet]]+tblFörsäljning[[#This Row],[Sålda enheter (mängd)]]*tblFörsäljning[[#This Row],[Mängdpris per enhet*]] -> 147,391 kr
B29: 1 | C29: =IFERROR(IF(tblFörsäljning[[#This Row],[Produktnummer]]<>"",VLOOKUP(tblFörsäljning[Produktnummer],tblProdukter[[Produktnummer]:[Namn]],2,FALSE),""),"Unknown Product ID") -> Skjortor | D29: 2012-05-14 | E29: 34 | F29: 31 kr | G29: 850 | H29: 1,548 | I29: =tblFörsäljning[[#This Row],[Sålda enheter (styck)]]+tblFörsäljning[[#This Row],[Sålda enheter (mängd)]] -> 2,398 | J29: =tblFörsäljning[[#This Row],[Sålda enheter (styck)]]*tblFörsäljning[[#This Row],[Styckpris per enhet]]+tblFörsäljning[[#This Row],[Sålda enheter (mängd)]]*tblFörsäljning[[#This Row],[Mängdpris per enhet*]] -> 76,888 kr
B30: 2 | C30: =IFERROR(IF(tblFörsäljning[[#This Row],[Produktnummer]]<>"",VLOOKUP(tblFörsäljning[Produktnummer],tblProdukter[[Produktnummer]:[Namn]],2,FALSE),""),"Unknown Product ID") -> Sandaler | D30: 2012-05-14 | E30: 64 | F30: 40 kr | G30: 876 | H30: 1,663 | I30: =tblFörsäljning[[#This Row],[Sålda enheter (styck)]]+tblFörsäljning[[#This Row],[Sålda enheter (mängd)]] -> 2,539 | J30: =tblFörsäljning[[#This Row],[Sålda enheter (styck)]]*tblFörsäljning[[#This Row],[Styckpris per enhet]]+tblFörsäljning[[#This Row],[Sålda enheter (mängd)]]*tblFörsäljning[[#This Row],[Mängdpris per enhet*]] -> 122,584 kr
B31: 3 | C31: =IFERROR(IF(tblFörsäljning[[#This Row],[Produktnummer]]<>"",VLOOKUP(tblFörsäljning[Produktnummer],tblProdukter[[Produktnummer]:[Namn]],2,FALSE),""),"Unknown Product ID") -> Paraplyer | D31: 2012-05-14 | E31: 33 | F31: 30 kr | G31: 881 | H31: 1,149 | I31: =tblFörsäljning[[#This Row],[Sålda enheter (styck)]]+tblFörsäljning[[#This Row],[Sålda enheter (mängd)]] -> 2,030 | J31: =tblFörsäljning[[#This Row],[Sålda enheter (styck)]]*tblFörsäljning[[#This Row],[Styckpris per enhet]]+tblFörsäljning[[#This Row],[Sålda enheter (mängd)]]*tblFörsäljning[[#This Row],[Mängdpris per enhet*]] -> 63,543 kr
B32: 4 | C32: =IFERROR(IF(tblFörsäljning[[#This Row],[Produktnummer]]<>"",VLOOKUP(tblFörsäljning[Produktnummer],tblProdukter[[Produktnummer]:[Namn]],2,FALSE),""),"Unknown Product ID") -> Vattenflaskor | D32: 2012-05-14 | E32: 29 | F32: 27 kr | G32: 802 | H32: 1,548 | I32: =tblFörsäljning[[#This Row],[Sålda enheter (styck)]]+tblFörsäljning[[#This Row],[Sålda enheter (mängd)]] -> 2,350 | J32: =tblFörsäljning[[#This Row],[Sålda enheter (styck)]]*tblFörsäljning[[#This Row],[Styckpris per enhet]]+tblFörsäljning[[#This Row],[Sålda enheter (mängd)]]*tblFörsäljning[[#This Row],[Mängdpris per enhet*]] -> 65,054 kr
B33: 5 | C33: =IFERROR(IF(tblFörsäljning[[#This Row],[Produktnummer]]<>"",VLOOKUP(tblFörsäljning[Produktnummer],tblProdukter[[Produktnummer]:[Namn]],2,FALSE),""),"Unknown Product ID") -> Kortbyxor | D33: 2013-12-11 | E33: 24 | F33: 15 kr | G33: 824 | H33: 1,994 | I33: =tblFörsäljning[[#This Row],[Sålda enheter (styck)]]+tblFörsäljning[[#This Row],[Sålda enheter (mängd)]] -> 2,818 | J33: =tblFörsäljning[[#This Row],[Sålda enheter (styck)]]*tblFörsäljning[[#This Row],[Styckpris per enhet]]+tblFörsäljning[[#This Row],[Sålda enheter (mängd)]]*tblFörsäljning[[#This Row],[Mängdpris per enhet*]] -> 49,686 kr

Sheet Prislista
B1: Produktprislista
B3: Adventure Works
B4: 23456 Maple Street
B5: Springfield, CA 77503
B6: Telefon: (425) 555-0150
B7: FAX: (425) 555-0152
B8: www.adventure-works.com | F8: Senaste uppdatering 2013-08-15
B10: Produktnummer | C10: Namn | D10: Beskrivning | E10: Styckpris per enhet | F10: Mängdpris per enhet*
B11: 1 | C11: Skjortor | D11: Håll dig sval hela sommaren med våra förtvättade skjortor i 100 % bomull. | E11: 22 kr | F11: 15.00 kr
B12: 2 | C12: Sandaler | D12: Med våra robusta sandaler med gummisula kan du promenera på brännhet sand utan problem. | E12: 10 kr | F12: 6.00 kr
B13: 3 | C13: Paraplyer | D13: Skydda dig från solen under våra stora parasoll som blockerar 96 % av solens skadliga UV-strålning. | E13: 30 kr | F13: 20.00 kr
B14: 4 | C14: Vattenflaskor | D14: Håll vätskenivån i schack med vatten från våra värmeisolerade vattenflaskor. | E14: 7 kr | F14: 5.00 kr
B15: 5 | C15: Kortbyxor | D15: Gå direkt från havet in i bilen med våra extremt snabbtorkande badbyxor i nylon. | E15: 15 kr | F15: 8.00 kr
F17: Ring oss för produkter som inte finns med på listan.
F18: *Mängdpris gäller vid beställning av 12 stycken eller fler.

Sheet Pivottabell för reavaror (hidden)
B1: Pivottabell punktpris
B2: Det här bladet ska vara dolt. Alla ändringar av pivottabellen nedan kan göra att felaktiga data visas i försäljningsrapporten.
B3: Markerad produkt: | C3: =IF(LEN(B5),B5,"Inga") -> Sandaler
B4: Produktnamn | C4: Styckpris per enhet | D4: Summa kogusummast Total försäljning (antal)
B5: Sandaler | C5: 38 kr | D5: 2464
C6: 50 kr | D6: 1777
C7: 64 kr | D7: 2539
C8: 70 kr | D8: 1787
C9: 83 kr | D9: 1758
C10: 91 kr | D10: 2715

Sheet Försäljningspivottabell (hidden)
B1: Pivottabell säljtrend
B2: Det här bladet ska vara dolt. Alla ändringar av pivottabellen nedan kan göra att felaktiga data visas i försäljningsrapporten.
B3: Summa kogusummast Total försäljning (antal) | C3: Produktnamn
B4: Prisdatum | C4: Sandaler
B5: jan | C5: 1787
B6: feb | C6: 4222
B7: mar | C7: 1777
B8: apr | C8: 2715
B9: maj | C9: 2539
